bitfinex-derivatives/quotes_SOLF0:USTF0_20220106
["timestamp","ask_amount","ask_price","bid_price","bid_amount"]
[1641443300267,4.0,149.05,148.93,6.67368044]
[1641443300669,4.0,148.99,148.93,63.51959765]
[1641443300868,6.134,148.99,148.93,63.51959765]
[1641443301573,6.134,148.99,148.93,6.67368044]
[1641443301767,1.88625971,148.99,148.93,6.67368044]
[1641443302167,1.88625971,148.99,148.88,75.90147091]
[1641443302569,27.66479,148.98,148.88,103.56626091]
[1641443303269,27.66479,148.98,148.88,107.56616091]
[1641443303472,27.66479,148.98,148.89,7.99062219]
[1641443304269,27.66479,148.98,148.89,64.8365394]
[1641443304469,27.66479,148.98,148.9,3.9999]
[1641443304671,27.66479,148.98,148.89,64.8365394]
[1641443304870,34.15079,148.98,148.89,64.8365394]
[1641443305772,34.15079,148.98,148.89,7.99062219]
[1641443306372,34.15079,148.98,148.89,64.8365394]
[1641443306671,34.15079,148.98,148.9,3.9999]
[1641443307275,34.15079,148.98,148.91,1.31694175]
[1641443307875,6.486,148.98,148.92,3.9999]
[1641443308073,27.66479,149.01,148.92,3.9999]
[1641443308474,27.66479,149.01,148.91,25.31684175]
[1641443308674,27.66479,149.01,148.92,27.66479]
[1641443308874,27.66479,149.01,148.93,1.31694175]
[1641443309876,6.70668321,149.02,148.93,11.99052219]
[1641443310080,6.70668321,149.02,148.94,3.9999]
[1641443310278,6.70668321,149.02,148.93,11.99052219]
[1641443310577,6.70668321,149.02,148.93,7.99062219]
[1641443310977,6.70668321,149.02,148.99,14.2250994]
[1641443311376,27.66479,149.04,148.99,14.2250994]
[1641443311778,27.66479,149.04,149.0,14.2250994]
[1641443312880,27.66479,149.04,149.0,18.2249994]
[1641443313077,37.87827996,149.1,149.02,3.9999]
[1641443313281,37.87827996,149.1,149.02,23.9999]
[1641443313681,37.87827996,149.1,149.06,14.2250994]
[1641443314080,3.42187653,149.13,149.06,14.2250994]
[1641443314782,3.42187653,149.13,149.06,41.8898894]
[1641443316084,3.42187653,149.14,149.07,14.2250994]
[1641443316283,7.42187653,149.14,149.07,14.2250994]
[1641443316883,27.66479,149.12,149.07,14.2250994]
[1641443317683,27.66479,149.12,149.06,14.2250994]
[1641443317883,34.09279,149.12,149.06,14.2250994]
[1641443318585,3.42187653,149.11,149.05,14.2250994]
[1641443319284,6.70376081,149.09,149.05,14.2250994]
[1641443319484,6.70488451,149.06,149.02,11.06493151]
[1641443319684,11.40988451,149.06,149.02,11.06493151]
[1641443319884,11.40988451,149.06,148.97,56.84591721]
[1641443320785,27.66479,149.0,148.97,56.84591721]
[1641443320987,32.67079,149.0,148.92,27.66479]
[1641443322186,37.41296192,149.0,148.92,27.66479]
[1641443322588,9.74817192,149.0,148.92,27.66479]
[1641443322787,4.74217192,149.0,148.92,27.66479]
[1641443323391,4.74217192,149.01,148.92,27.66479]
[1641443324390,4.74217192,149.02,148.92,27.66479]
[1641443324990,4.74217192,149.02,148.92,34.36832612]
[1641443325191,4.74217192,149.02,148.92,39.69932612]
[1641443325590,4.74217192,149.02,149.01,4.74138954]
[1641443327399,4.74217192,149.02,148.92,27.66479]
[1641443327602,5.687,149.02,148.93,56.84591721]
[1641443328793,10.42917192,149.02,149.01,4.74146237]
[1641443328996,10.42917192,149.02,148.92,27.66479]
[1641443329595,5.687,149.02,148.92,27.66479]
[1641443330095,5.687,149.02,148.89,189.36731721]
[1641443330796,5.687,149.02,148.89,132.5214]
[1641443330996,5.687,149.02,148.89,160.18619]
[1641443331396,12.39368321,149.02,148.89,160.18619]
[1641443331797,4.0,149.01,148.89,160.18619]
[1641443332897,27.66479,149.0,148.89,160.18619]
[1641443333398,31.66479,149.0,148.89,160.18619]
[1641443334699,27.66479,149.0,148.89,160.18619]
[1641443335199,27.66479,149.0,148.9,11.05756872]
[1641443335600,31.66479,149.0,148.9,11.05756872]
[1641443336903,27.66479,149.0,148.9,11.05756872]
[1641443339000,4.0,148.99,148.9,11.05756872]
[1641443339202,11.138,148.99,148.9,11.05756872]
[1641443340006,4.0,148.98,148.9,11.05756872]
[1641443340607,4.0,148.95,148.9,11.05756872]
[1641443340802,4.0,148.94,148.9,11.05756872]
[1641443341004,4.0,148.93,148.9,17.72422591]
[1641443341202,4.0,148.92,148.9,17.72422591]
[1641443341404,6.514,148.92,148.9,17.72422591]
[1641443342006,4.0,148.91,148.85,56.84591721]
[1641443342204,6.514,148.92,148.84,17.72481934]
[1641443342405,4.0,148.91,148.84,17.72481934]
[1641443342604,4.0,148.9,148.84,17.72481934]
[1641443342805,4.0,148.88,148.82,56.84591721]
[1641443343005,27.66479,148.84,148.82,56.84591721]
[1641443343206,32.93679,148.84,148.82,56.84591721]
[1641443343406,5.272,148.84,148.82,56.84591721]
[1641443343707,5.272,148.84,148.77,72.43566232]
[1641443344509,5.272,148.84,148.77,56.84591721]
[1641443344907,5.272,148.84,148.74,152.15450721]
[1641443345107,27.66479,148.83,148.74,84.51070721]
[1641443346308,27.66479,148.83,148.74,27.66479]
[1641443346709,31.66479,148.83,148.74,27.66479]
[1641443347011,27.66479,148.83,148.74,31.66469]
[1641443347215,67.7367,148.9,148.75,10.71108419]
[1641443347411,37.87827996,148.92,148.8,10.70883294]
[1641443347608,37.87827996,148.92,148.81,3.9999]
[1641443348008,41.87827996,148.92,148.8,9.3429]
[1641443348212,41.87827996,148.92,148.78,74.30875838]
[1641443348409,4.0,148.92,148.8,56.84591721]
[1641443349009,4.0,148.92,148.85,27.66479]
[1641443350114,4.0,148.92,148.88,14.23518483]
[1641443350315,27.66479,148.94,148.88,14.23518483]
[1641443350721,31.66479,148.94,148.88,14.23518483]
[1641443351622,31.66479,148.94,148.89,14.23518483]
[1641443352024,27.66479,148.94,148.89,14.23518483]
[1641443352228,4.0,148.93,148.89,14.23518483]
[1641443352522,4.0,148.91,148.87,14.23518483]
[1641443353625,4.0,148.91,148.86,14.23518483]
[1641443353925,6.71185986,148.91,148.86,14.23518483]
[1641443354123,4.0,148.87,148.78,56.84591721]
[1641443354323,4.0,148.84,148.78,56.84591721]
[1641443354526,4.0,148.83,148.76,56.84591721]
[1641443354724,5.3,148.84,148.76,56.84591721]
[1641443354925,9.3,148.84,148.76,56.84591721]
[1641443355328,27.66479,148.83,148.76,56.84591721]
[1641443355526,27.66479,148.83,148.73,155.73099]
[1641443355725,27.66479,148.83,148.73,92.71759]
[1641443356127,33.27979,148.83,148.73,92.71759]
[1641443357329,37.27979,148.83,148.73,92.71759]
[1641443357738,33.27979,148.83,148.73,92.71759]
[1641443357928,37.27979,148.83,148.73,92.71759]
[1641443358131,4.0,148.8,148.73,92.71759]
[1641443358331,10.17,148.8,148.73,92.71759]
[1641443358830,10.17,148.8,148.74,11.05180308]
[1641443359230,4.0,148.79,148.74,11.05180308]
[1641443359433,4.0,148.77,148.7,56.84591721]
[1641443359637,4.0,148.74,148.7,56.84591721]
[1641443359833,4.0,148.73,148.7,56.84591721]
[1641443360032,4.0,148.71,148.7,56.84591721]
[1641443360233,9.758,148.71,148.7,56.84591721]
[1641443360631,5.758,148.71,148.68,1.3099168]
[1641443361436,33.42279,148.71,148.68,1.3099168]
[1641443361932,33.42279,148.71,148.62,56.84591721]
[1641443362135,1.07634427,148.71,148.63,3.9999]
[1641443362336,27.66479,148.74,148.64,3.9999]
[1641443362534,27.66479,148.74,148.63,3.9999]
[1641443362734,27.66479,148.74,148.62,68.87277851]
[1641443362936,27.66479,148.74,148.63,3.9999]
[1641443363335,27.66479,148.74,148.65,27.66479]
[1641443363735,27.66479,148.78,148.65,32.49779]
[1641443364537,27.66479,148.78,148.65,27.66479]
[1641443364737,27.66479,148.78,148.66,64.81339792]
[1641443365138,4.0,148.77,148.66,64.81339792]
[1641443365337,27.66479,148.74,148.66,64.81339792]
[1641443365537,34.49879,148.74,148.66,7.96748071]
[1641443366740,4.0,148.72,148.66,7.96748071]
[1641443367140,6.72065594,148.71,148.66,6.65756391]
[1641443367343,27.66479,148.7,148.62,64.81339792]
[1641443367541,31.66479,148.7,148.62,64.81339792]
[1641443368542,31.66479,148.7,148.6,64.81339792]
[1641443368943,4.0,148.67,148.6,64.81339792]
[1641443369145,5.024,148.67,148.6,64.81339792]
[1641443369342,27.66479,148.64,148.6,64.81339792]
[1641443369542,33.36779,148.64,148.6,64.81339792]
[1641443369946,33.36779,148.64,148.6,7.96748071]
[1641443370148,37.36779,148.64,148.6,6.65756391]
[1641443370347,4.0,148.62,148.6,8.071e-05]
[1641443370846,4.0,148.61,148.58,56.84591721]
[1641443371045,4.0,148.6,148.54,94.45991373]
[1641443371248,4.0,148.57,148.51,15.59517949]
[1641443371445,27.66479,148.52,148.51,15.59517949]
[1641443371644,32.34279,148.52,148.51,15.59517949]
[1641443372244,4.678,148.52,148.51,15.59517949]
[1641443372645,27.66479,148.55,148.47,3.9999]
[1641443372844,27.66479,148.55,148.46,15.59517949]
[1641443373044,9.146,148.61,148.46,15.59517949]
[1641443373045,10.72427126,148.63,148.5,3.9999]
[1641443373244,6.72427126,148.63,148.47,63.916]
[1641443373445,27.66479,148.62,148.53,27.66479]
[1641443373844,27.66479,148.62,148.51,27.66479]
[1641443374245,4.0,148.61,148.51,27.66479]
[1641443374445,6.72653281,148.58,148.47,158.37591373]
[1641443374645,16.38753281,148.58,148.47,94.45991373]
[1641443374845,12.38753281,148.58,148.46,110.05509322]
[1641443375247,4.0,148.57,148.46,110.05509322]
[1641443375447,27.66479,148.55,148.46,110.05509322]
[1641443375647,41.5339068,148.55,148.46,110.05509322]
[1641443375847,34.80579,148.55,148.46,110.05509322]
[1641443376247,41.5339068,148.55,148.45,11.04433351]
[1641443377249,34.80579,148.55,148.46,3.9999]
[1641443377449,34.80579,148.55,148.45,26.639513]
[1641443378450,6.72834315,148.54,148.45,26.639513]
[1641443378850,34.80579,148.55,148.45,26.639513]
[1641443379252,41.53368047,148.55,148.45,26.639513]
[1641443380551,41.53368047,148.55,148.45,11.04433351]
[1641443380952,45.53368047,148.55,148.45,11.04433351]
[1641443381155,41.53368047,148.55,148.45,11.04433351]
[1641443381353,6.72970154,148.51,148.45,11.04433351]
[1641443381552,13.26470154,148.51,148.45,11.04433351]
[1641443381953,6.535,148.51,148.45,11.04433351]
[1641443382554,27.66479,148.52,148.45,11.04433351]
[1641443383156,27.66479,148.52,148.44,11.04433351]
[1641443383355,34.01879,148.52,148.44,11.04433351]
[1641443383758,4.0,148.5,148.44,11.04433351]
[1641443383958,4.0,148.51,148.44,11.04433351]
[1641443384158,34.01879,148.52,148.44,11.04433351]
[1641443384659,27.66479,148.55,148.44,15.04423351]
[1641443384865,27.66479,148.55,148.46,3.9999]
[1641443385060,70.02812801,148.6,148.45,3.9999]
[1641443385262,74.02812801,148.6,148.5,14.27331569]
[1641443385458,34.39154905,148.58,148.5,14.27331569]
[1641443385658,6.72766416,148.56,148.5,14.27331569]
[1641443386260,6.72766416,148.56,148.53,14.27331569]
[1641443387862,10.72766416,148.56,148.53,14.27331569]
[1641443388261,4.0,148.55,148.53,14.27331569]
[1641443388462,10.72766416,148.56,148.53,14.27331569]
[1641443388668,10.72902227,148.54,148.51,14.27331569]
[1641443388862,4.0,148.52,148.46,11.04433351]
[1641443389062,5.179,148.52,148.46,11.04433351]
[1641443389264,9.179,148.52,148.46,11.04433351]
[1641443389465,27.66479,148.47,148.4,57.0876825]
[1641443389763,34.75779,148.47,148.4,57.0876825]
[1641443391063,34.75779,148.47,148.38,57.0876825]
[1641443391462,27.66479,148.44,148.38,57.0876825]
[1641443391662,32.87479,148.44,148.37,90.369012]
[1641443391862,5.21,148.44,148.37,94.368912]
[1641443392462,5.21,148.44,148.37,90.369012]
[1641443393171,11.94287325,148.44,148.37,90.369012]
[1641443393564,27.66479,148.4,148.37,90.369012]
[1641443393768,34.49679,148.4,148.37,90.369012]
[1641443394367,34.49679,148.4,148.34,6.64709538]
[1641443395468,34.49679,148.4,148.32,74.77911139]
[1641443396769,6.7358211,148.38,148.32,74.77911139]
[1641443396971,6.73740947,148.34,148.32,17.69142889]
[1641443397173,11.93940947,148.34,148.32,17.69142889]
[1641443397572,39.60419947,148.34,148.32,17.69142889]
[1641443397975,39.60419947,148.34,148.31,57.0876825]
[1641443397976,39.60419947,148.34,148.3,15.58990061]
[1641443398273,39.60419947,148.34,148.26,57.0876825]
[1641443398473,32.86679,148.34,148.26,57.0876825]
[1641443399474,32.86679,148.34,148.27,27.66479]
[1641443399675,32.86679,148.34,148.29,57.0876825]
[1641443400280,6.73786342,148.33,148.29,57.0876825]
[1641443400876,6.73786342,148.33,148.27,57.0876825]
[1641443401481,27.66479,148.4,148.27,57.0876825]
[1641443401680,4.75842027,148.39,148.31,3.9999]
[1641443401878,4.75842027,148.38,148.31,8.4669]
[1641443402176,4.75842027,148.38,148.32,3.9999]
[1641443402376,4.75842027,148.38,148.31,3.9999]
[1641443402577,9.37942027,148.38,148.28,96.93369]
[1641443402979,6.73627484,148.37,148.31,57.0876825]
[1641443403578,34.40106484,148.37,148.31,57.0876825]
[1641443403781,27.66479,148.37,148.31,57.0876825]
[1641443403980,4.75842027,148.39,148.33,3.9999]
[1641443404579,4.75842027,148.39,148.29,17.69142889]
[1641443405179,11.49378768,148.39,148.29,17.69142889]
[1641443405382,10.73536741,148.39,148.33,57.0876825]
[1641443405582,6.73650173,148.36,148.33,57.0876825]
[1641443405784,4.423,148.36,148.33,57.0876825]
[1641443406385,4.423,148.36,148.29,17.69142889]
[1641443406584,4.423,148.36,148.29,21.69132889]
[1641443406785,27.66479,148.37,148.31,3.9999]
[1641443406984,27.66479,148.37,148.29,17.69142889]
[1641443407185,34.28779,148.37,148.29,17.69142889]
[1641443407885,10.73695557,148.35,148.29,74.77911139]
[1641443408091,4.0,148.34,148.29,74.77911139]
[1641443408288,6.73899858,148.31,148.29,29.25965514]
[1641443408487,12.89999858,148.31,148.29,29.25965514]
[1641443409086,12.89999858,148.31,148.27,17.69398859]
[1641443409686,27.66479,148.28,148.27,17.69398859]
[1641443409887,27.66479,148.29,148.27,17.69398859]
[1641443410489,27.66479,148.29,148.23,15.58990061]
[1641443410686,11.49582974,148.34,148.27,3.9999]
[1641443410890,4.75842027,148.33,148.27,9.3929]
[1641443411189,4.75842027,148.33,148.27,5.393]
[1641443411586,32.42321027,148.33,148.27,5.393]
[1641443412087,27.66479,148.33,148.28,1.30122822]
[1641443412788,6.73854447,148.32,148.28,1.30122822]
[1641443412990,4.0,148.31,148.28,1.30122822]
[1641443413193,11.47154447,148.32,148.25,1.30122822]
[1641443413592,4.733,148.32,148.25,1.30122822]
[1641443413993,27.66479,148.33,148.23,27.66479]
[1641443414193,27.66479,148.33,148.25,3.9999]
[1641443414393,27.66479,148.33,148.24,3.9999]
[1641443414794,11.49605671,148.34,148.26,3.9999]
[1641443415094,11.49605671,148.34,148.23,37.93269]
[1641443415297,4.75842027,148.34,148.28,3.9999]
[1641443415495,4.75842027,148.34,148.3,3.9999]
[1641443415898,4.75842027,148.37,148.29,31.66469]
[1641443416297,4.75842027,148.37,148.3,3.9999]
[1641443416495,4.75842027,148.37,148.29,27.66479]
[1641443416695,6.73604796,148.37,148.3,1.30122822]
[1641443417096,34.39970379,148.4,148.32,3.9999]
[1641443417298,27.66479,148.4,148.33,3.9999]
[1641443417495,4.75842027,148.41,148.33,4.794]
[1641443417696,4.75842027,148.41,148.33,8.7939]
[1641443417898,4.75842027,148.41,148.33,4.794]
[1641443418096,97.84448335,148.46,148.39,3.9999]
[1641443418097,6.73219335,148.46,148.39,3.9999]
[1641443418297,6.73219335,148.46,148.4,3.9999]
[1641443418498,37.87827996,148.47,148.4,3.9999]
[1641443418796,6.73219335,148.46,148.35,67.6723]
[1641443418997,13.07819335,148.46,148.35,67.6723]
[1641443419197,6.346,148.46,148.35,67.6723]
[1641443419398,26.93149302,148.47,148.43,14.27725388]
[1641443419697,37.87827996,148.53,148.45,31.66469]
[1641443419896,37.87827996,148.53,148.5,3.9999]
[1641443420096,37.87827996,148.53,148.5,4.766]
[1641443420825,6.72834315,148.54,148.49,14.27725388]
[1641443420899,4.0,148.53,148.49,14.27725388]
[1641443421099,6.72834315,148.54,148.49,14.27725388]
[1641443421501,7.45749999,148.55,148.49,14.27725388]
[1641443421698,31.66479,148.54,148.49,14.27725388]
[1641443421899,6.73038094,148.5,148.45,1.30122822]
[1641443422198,13.47938094,148.5,148.45,1.30122822]
[1641443422699,17.47938094,148.5,148.45,1.30122822]
[1641443422999,3.45749999,148.49,148.44,14.27725388]
[1641443423198,3.45749999,148.49,148.45,3.9999]
[1641443423500,37.87827996,148.54,148.45,3.9999]
[1641443423700,37.87827996,148.54,148.47,27.66479]
[1641443424100,10.72879588,148.53,148.44,14.27725388]
[1641443424499,6.72879588,148.53,148.47,14.27725388]
[1641443425101,4.0,148.52,148.47,14.27725388]
[1641443425300,5.619,148.52,148.47,14.27725388]
[1641443425503,9.619,148.52,148.46,14.27725388]
[1641443425700,27.66479,148.49,148.46,14.27725388]
[1641443426306,27.66479,148.49,148.44,14.27725388]
[1641443427105,27.66479,148.49,148.45,14.27725388]
[1641443427506,22.13183201,148.49,148.45,14.27725388]
[1641443427908,105.72187996,148.56,148.46,3.9999]
[1641443428108,37.87827996,148.56,148.46,3.9999]
[1641443428306,37.87827996,148.56,148.45,21.14325388]
[1641443428510,41.87827996,148.56,148.45,21.14325388]
[1641443428707,6.72789047,148.55,148.45,21.14325388]
[1641443429108,10.72789047,148.55,148.49,14.27725388]
[1641443429309,30.91156188,148.58,148.49,14.27725388]
[1641443429508,6.7269853,148.57,148.49,14.27725388]
[1641443429708,27.66479,148.54,148.49,14.27725388]
[1641443430311,27.66479,148.54,148.5,18.27715388]
[1641443430510,27.66479,148.54,148.5,20.19225388]
[1641443431312,27.66479,148.54,148.52,14.27725388]
[1641443431516,37.87827996,148.62,148.52,14.27725388]
[1641443431712,65.54306996,148.62,148.54,27.66479]
[1641443432113,65.54306996,148.62,148.54,31.66469]
[1641443432311,65.54306996,148.62,148.55,3.9999]
[1641443432512,37.87827996,148.65,148.59,3.9999]
[1641443432713,37.87827996,148.65,148.59,10.8039]
[1641443433014,37.87827996,148.65,148.54,47.06704388]
[1641443433015,44.60164702,148.65,148.54,41.94204388]
[1641443433212,50.43464702,148.65,148.54,41.94204388]
[1641443433612,16.55636706,148.65,148.57,14.27725388]
[1641443433813,4.0,148.62,148.57,14.27725388]
[1641443434017,5.851,148.62,148.57,14.27725388]
[1641443435015,16.57572345,148.62,148.57,14.27725388]
[1641443435215,16.57572345,148.62,148.54,41.94204388]
[1641443435415,12.57572345,148.62,148.54,41.94204388]
[1641443435619,6.7269853,148.57,148.54,14.27725388]
[1641443435816,4.0,148.56,148.54,14.27725388]
[1641443436016,13.4149853,148.57,148.54,6.06133362]
[1641443436217,17.4149853,148.57,148.54,6.06133362]
[1641443436816,13.4149853,148.57,148.48,27.66479]
[1641443437020,19.06735842,148.57,148.48,27.66479]
[1641443437219,23.06735842,148.57,148.48,27.66479]
[1641443437419,4.0,148.56,148.48,27.66479]
[1641443437717,4.0,148.5,148.44,27.66479]
[1641443437917,5.066,148.5,148.44,27.66479]
[1641443438418,11.79615446,148.5,148.4,57.10901552]
[1641443438816,15.79615446,148.5,148.4,57.10901552]
[1641443439017,6.73151358,148.47,148.4,57.10901552]
[1641443439220,11.32251358,148.47,148.4,11.03428573]
[1641443439616,6.73468701,148.41,148.35,57.10901552]
[1641443439816,68.54526701,148.41,148.35,57.10901552]
[1641443440018,40.88047701,148.41,148.35,57.10901552]
[1641443440418,13.21568701,148.41,148.35,57.10901552]
[1641443440616,6.481,148.41,148.35,57.10901552]
[1641443440817,37.87827996,148.48,148.37,6.63635286]
[1641443441018,6.73287325,148.44,148.37,6.63635286]
[1641443441617,6.73400673,148.42,148.37,6.63635286]
[1641443441822,6.73400673,148.42,148.35,27.66479]
[1641443442622,31.66479,148.45,148.35,27.66479]
[1641443442821,38.3974366,148.45,148.35,27.66479]
[1641443443426,34.3974366,148.45,148.36,6.63635286]
[1641443444525,4.0,148.44,148.36,6.63635286]
[1641443444725,34.3974366,148.45,148.36,6.63635286]
[1641443446829,4.0,148.44,148.36,6.63635286]
[1641443447327,34.3974366,148.45,148.36,6.63635286]
[1641443447727,38.3974366,148.45,148.36,6.63635286]
[1641443448230,34.3974366,148.45,148.36,6.63635286]
[1641443449028,38.3974366,148.45,148.36,6.63635286]
[1641443449730,4.0,148.42,148.36,6.63635286]
[1641443449929,4.0,148.41,148.36,6.63635286]
[1641443450330,6.7335533,148.43,148.36,6.63635286]
[1641443450532,6.7335533,148.43,148.36,11.20535286]
[1641443451332,4.0,148.41,148.36,11.20535286]
[1641443451532,4.0,148.41,148.36,6.63635286]
[1641443451931,4.0,148.4,148.36,6.63635286]
[1641443452133,4.0,148.41,148.36,6.63635286]
[1641443452532,4.0,148.39,148.36,6.63635286]
[1641443452733,10.611,148.39,148.36,6.63635286]
[1641443452933,4.0,148.38,148.36,6.63635286]
[1641443453333,4.0,148.39,148.32,6.63635286]
[1641443453535,4.0,148.38,148.32,6.63635286]
[1641443453736,10.73536741,148.39,148.32,6.63635286]
[1641443454236,6.73650173,148.36,148.31,6.63635286]
[1641443455038,4.0,148.39,148.31,6.63635286]
[1641443455238,10.73536741,148.39,148.31,6.63635286]
[1641443455438,6.73536741,148.39,148.31,6.63635286]
[1641443455638,10.73536741,148.39,148.31,6.63635286]
[1641443455838,6.73536741,148.39,148.31,6.63635286]
[1641443457140,74.9935533,148.43,148.31,12.38535286]
[1641443457639,78.9935533,148.43,148.31,12.38535286]
[1641443457938,4.0,148.42,148.34,27.66479]
[1641443458638,4.0,148.42,148.35,6.63635286]
[1641443459340,6.7335533,148.43,148.35,6.63635286]
[1641443460141,6.7335533,148.43,148.36,3.9999]
[1641443460345,12.40882872,148.44,148.39,3.9999]
[1641443460540,37.87827996,148.47,148.41,3.9999]
[1641443461341,37.87827996,148.47,148.39,5.525]
[1641443461541,51.08402011,148.47,148.36,63.192]
[1641443461941,51.08402011,148.47,148.39,27.66479]
[1641443461942,40.87053015,148.47,148.39,27.66479]
[1641443462443,4.0,148.44,148.37,11.03564413]
[1641443462641,5.796,148.44,148.37,11.03564413]
[1641443463042,5.796,148.44,148.36,63.192]
[1641443463244,5.796,148.44,148.34,84.77380552]
[1641443463245,5.796,148.44,148.34,31.66469]
[1641443463544,5.796,148.44,148.34,27.66479]
[1641443463742,27.66479,148.47,148.34,27.66479]
[1641443463943,10.19624495,148.43,148.35,1.29783497]
[1641443464442,3.46269165,148.43,148.35,1.29783497]
[1641443464842,3.46269165,148.42,148.35,5.29773497]
[1641443465046,3.46269165,148.42,148.36,3.9999]
[1641443465242,3.46269165,148.42,148.35,1.29783497]
[1641443465642,3.46269165,148.42,148.35,5.29773497]
[1641443465845,3.46269165,148.45,148.39,27.66479]
[1641443466743,3.46269165,148.45,148.4,1.29783497]
[1641443467944,3.46269165,148.46,148.4,21.60969349]
[1641443468144,37.87827996,148.51,148.44,3.9999]
[1641443468344,37.87827996,148.51,148.44,9.8399]
[1641443468543,37.87827996,148.51,148.45,3.9999]
[1641443468744,37.87827996,148.51,148.44,9.8399]
[1641443468945,30.91971196,148.54,148.44,20.11985852]
[1641443469145,6.72970154,148.51,148.44,20.11985852]
[1641443469546,6.72970154,148.51,148.44,14.27985852]
[1641443469946,27.66479,148.5,148.44,14.27985852]
[1641443470448,27.66479,148.5,148.42,14.27985852]
[1641443472048,27.66479,148.5,148.42,41.94464852]
[1641443473449,34.80779,148.5,148.42,14.27985852]
[1641443473653,6.73060744,148.49,148.42,14.27985852]
[1641443474652,6.73060744,148.49,148.39,41.94464852]
[1641443474853,6.7326466,148.45,148.39,41.94464852]
[1641443475554,6.7326466,148.45,148.39,27.66479]
[1641443475752,44.6088874,148.49,148.39,27.66479]
[1641443476753,37.87827996,148.49,148.39,32.30979]
[1641443476953,27.66479,148.5,148.4,14.27985852]
[1641443477553,37.87827996,148.51,148.41,3.9999]
[1641443477753,37.87827996,148.51,148.42,3.9999]
[1641443477955,37.87827996,148.51,148.43,27.66479]
[1641443478555,4.75892944,148.46,148.45,4.75892944]
[1641443479556,37.87827996,148.52,148.43,31.66469]
[1641443479856,4.75832147,148.47,148.43,41.94464852]
[1641443480056,4.75832147,148.47,148.43,47.45764852]
[1641443480460,6.72902227,148.53,148.43,47.45764852]
[1641443480658,6.72902227,148.53,148.44,14.27985852]
[1641443481355,19.12352085,148.53,148.44,20.91754383]
[1641443483060,6.73038094,148.5,148.44,20.91754383]
[1641443483661,6.73038094,148.5,148.43,27.66479]
[1641443484060,50.27277854,148.52,148.43,31.66469]
[1641443484261,50.27277854,148.52,148.45,3.9999]
[1641443484660,50.27277854,148.52,148.43,33.52679]
[1641443485060,12.39449858,148.52,148.43,47.80664852]
[1641443485760,12.39449858,148.52,148.43,51.80654852]
[1641443485963,44.60639676,148.55,148.44,20.91678358]
[1641443486962,19.12261538,148.55,148.45,14.27985852]
[1641443487962,19.12261538,148.55,148.45,18.27975852]
[1641443488166,19.12261538,148.55,148.46,41.94464852]
[1641443488463,6.7294751,148.52,148.46,41.94464852]
[1641443488664,17.7354751,148.52,148.46,14.27985852]
[1641443489264,4.0,148.51,148.43,27.66479]
[1641443489566,44.60775506,148.52,148.43,27.66479]
[1641443489765,4.0,148.51,148.43,27.66479]
[1641443490166,31.66479,148.51,148.43,27.66479]
[1641443490565,69.54306996,148.51,148.41,68.8403]
[1641443490764,69.54306996,148.51,148.41,61.22541845]
[1641443491170,12.39449858,148.5,148.41,75.50527697]
[1641443491870,16.39449858,148.5,148.41,61.22541845]
[1641443492068,16.39449858,148.5,148.4,80.40555852]
[1641443492667,6.73106048,148.48,148.4,80.40555852]
[1641443492868,6.73106048,148.48,148.4,14.27985852]
[1641443493168,10.73106048,148.48,148.4,14.27985852]
[1641443493368,6.73106048,148.48,148.4,14.27985852]
[1641443494269,6.73106048,148.48,148.39,27.66479]
[1641443497572,6.73106048,148.48,148.39,41.94464852]
[1641443498475,50.27277854,148.5,148.41,3.9999]
[1641443498674,50.27277854,148.5,148.41,8.8909]
[1641443498877,50.27277854,148.5,148.42,3.9999]
[1641443499279,50.27277854,148.5,148.43,3.9999]
[1641443499476,37.87827996,148.5,148.43,3.9999]
[1641443499677,37.87827996,148.53,148.43,3.9999]
[1641443500275,37.87827996,148.53,148.42,14.27985852]
[1641443500475,37.87827996,148.53,148.46,27.66479]
[1641443500676,37.87827996,148.53,148.44,27.66479]
[1641443500978,6.7294751,148.52,148.44,41.94464852]
[1641443501177,54.27239938,148.55,148.44,41.94464852]
[1641443501379,50.27239938,148.55,148.44,41.94464852]
[1641443501977,54.27239938,148.55,148.44,41.94464852]
[1641443502482,27.66479,148.53,148.45,20.91894181]
[1641443503281,27.66479,148.53,148.45,14.27985852]
[1641443503482,27.66479,148.53,148.44,41.94464852]